bitfinex/quotes_SOLUSD_20240930
["timestamp","ask_amount","ask_price","bid_price","bid_amount"]
[1727674652210,1.59440156,156.84,156.8,10.33779855]
[1727674654001,23.776884,156.83,156.8,10.33779855]
[1727674654206,1.59445608,156.82,156.8,10.33779855]
[1727674655115,1.59445479,156.83,156.8,10.33779855]
[1727674656289,20.0,156.84,156.8,10.33779855]
[1727674656494,23.776884,156.83,156.8,10.33779855]
[1727674657891,1.59445317,156.82,156.8,10.33779855]
[1727674660113,23.776884,156.83,156.8,10.33779855]
[1727674661011,1.59445345,156.82,156.8,10.33779855]
[1727674661211,1.59445345,156.82,156.74,2.3079]
[1727674661395,1.59445345,156.82,156.79,10.33779855]
[1727674661900,1.59445345,156.82,156.78,10.33779855]
[1727674662109,39.392984,156.83,156.78,10.33779855]
[1727674662303,39.392984,156.83,156.81,10.33779855]
[1727674662513,39.392984,156.83,156.79,10.33779855]
[1727674669004,15.6161,156.83,156.79,10.33779855]
[1727674669209,15.6161,156.83,156.81,10.33779855]
[1727674672614,1.59435782,156.82,156.81,10.33779855]
[1727674672923,1.59435782,156.82,156.79,10.33779855]
[1727674673719,15.6161,156.83,156.81,10.33779855]
[1727674681913,1.59440917,156.82,156.74,0.25098]
[1727674682103,1.59440917,156.82,156.79,10.33779855]
[1727674682598,1.59440917,156.82,156.74,0.25098]
[1727674682804,1.59440917,156.82,156.79,10.33779855]
[1727674683008,6.4738,156.87,156.81,10.33779855]
[1727674683338,22.5252,156.87,156.83,10.33779855]
[1727674684203,16.0514,156.87,156.85,10.33779855]
[1727674684424,35.0879,156.96,156.85,10.33779855]
[1727674684425,6.2363,156.91,156.85,10.33779855]
[1727674684723,6.2363,156.91,156.88,10.33779855]
[1727674685924,1.59378106,156.9,156.88,10.33779855]
[1727674686225,6.2363,156.91,156.88,10.33779855]
[1727674689111,20.0,156.92,156.88,10.33779855]
[1727674689318,1.59358428,156.91,156.9,10.33779855]
[1727674689621,1.59358428,156.91,156.88,10.33779855]
[1727674690028,20.0,156.92,156.89,7.88706119]
[1727674690234,20.0,156.92,156.88,10.33779855]
[1727674690528,1.59366197,156.91,156.88,10.33779855]
[1727674691322,1.59366197,156.91,156.89,30.0]
[1727674693030,23.776884,156.91,156.89,30.0]
[1727674694633,1.59359644,156.9,156.89,30.0]
[1727674695508,23.776884,156.91,156.89,30.0]
[1727674695918,23.776884,156.91,156.88,10.33779855]
[1727674696832,23.776884,156.91,156.81,0.89217453]
[1727674696833,20.0,156.92,156.9,10.33779855]
[1727674698433,20.0,156.92,156.9,40.33779855]
[1727674699219,23.776884,156.92,156.9,40.33779855]
[1727674699739,15.9741,156.97,156.9,40.33779855]
[1727674700039,15.9741,156.97,156.95,10.33779855]
[1727674703416,20.0,156.98,156.95,10.33779855]
[1727674703817,20.0,156.98,156.95,40.33779855]
[1727674710043,20.0,156.98,156.95,10.33779855]
[1727674712551,20.0,156.98,156.95,40.33779855]
[1727674712753,20.0,156.98,156.95,30.0]
[1727674712927,1.59293116,156.97,156.95,40.33779855]
[1727674713125,20.0,156.98,156.95,40.33779855]
[1727674713335,23.776884,156.98,156.97,10.33779855]
[1727674713537,6.1349,156.99,156.97,10.33779855]
[1727674714039,20.0,157.0,156.97,10.33779855]
[1727674714747,23.776884,156.99,156.97,10.33779855]
[1727674715735,1.59278619,156.98,156.95,30.0]
[1727674716065,1.59278619,156.98,156.95,40.33779855]
[1727674716222,1.59278619,156.98,156.97,10.33779855]
[1727674717249,23.776884,156.99,156.97,10.33779855]
[1727674718650,1.59281445,156.98,156.97,10.33779855]
[1727674719239,23.776884,156.99,156.97,10.33779855]
[1727674719652,1.59280603,156.98,156.95,40.33779855]
[1727674721967,23.776884,156.99,156.95,40.33779855]
[1727674722329,23.776884,156.99,156.98,10.33779855]
[1727674722539,43.776884,156.99,156.98,10.33779855]
[1727674722854,23.776884,156.99,156.98,10.33779855]
[1727674723752,23.776884,156.99,156.96,10.33779855]
[1727674725752,1.5928593,156.98,156.96,10.33779855]
[1727674726437,23.776884,156.99,156.96,10.33779855]
[1727674728051,23.776884,156.97,156.95,10.33779855]
[1727674728255,1.59306078,156.96,156.95,10.33779855]
[1727674731651,23.776884,156.98,156.95,10.33779855]
[1727674734268,23.776884,156.98,156.89,0.89041922]
[1727674734441,23.776884,156.98,156.95,10.33779855]
[1727674736759,23.776884,156.98,156.96,4.91926679]
[1727674736946,23.776884,156.98,156.95,10.33779855]
[1727674737149,23.776884,156.98,156.96,4.91907712]
[1727674737456,23.776884,156.98,156.95,10.33779855]
[1727674737658,23.776884,156.98,156.96,4.92028844]
[1727674737846,23.776884,156.98,156.95,10.33779855]
[1727674738057,23.776884,156.98,156.96,4.92015437]
[1727674738352,23.776884,156.98,156.95,10.33779855]
[1727674738555,23.776884,156.98,156.96,4.9209961]
[1727674738752,23.776884,156.98,156.95,10.33779855]
[1727674738953,23.776884,156.98,156.96,4.920938]
[1727674739176,23.776884,156.98,156.95,10.33779855]
[1727674739461,23.776884,156.98,156.96,4.92239943]
[1727674739763,23.776884,156.98,156.95,10.33779855]
[1727674739940,23.776884,156.98,156.96,4.92247008]
[1727674740239,23.776884,156.98,156.95,10.33779855]
[1727674740564,23.776884,156.98,156.96,4.92414008]
[1727674740762,23.776884,156.98,156.95,10.33779855]
[1727674740978,43.902374,157.0,156.96,4.92411879]
[1727674741143,50.271874,157.0,156.97,4.92411879]
[1727674741460,50.271874,157.0,156.98,4.92411879]
[1727674741667,50.271874,157.0,156.95,10.33779855]
[1727674742379,43.776884,157.0,156.97,10.33779855]
[1727674743244,20.0,157.0,156.97,10.33779855]
[1727674743450,20.0,157.0,156.99,10.33779855]
[1727674744061,21.59264301,157.0,156.99,10.33779855]
[1727674744758,43.776884,157.0,156.99,10.33779855]
[1727674745371,15.4171,157.01,156.99,10.33779855]
[1727674746448,6.197,157.03,156.99,10.33779855]
[1727674746651,15.0978,157.05,157.01,10.33779855]
[1727674746983,15.0978,157.05,157.03,10.33779855]
[1727674747570,6.4809,157.07,157.03,10.33779855]
[1727674747746,16.2297035,157.09,157.05,10.33779855]
[1727674749252,20.0,157.07,157.05,10.33779855]
[1727674749963,23.776884,157.08,157.05,10.33779855]
[1727674750972,23.776884,157.08,157.07,10.33779855]
[1727674751665,0.8084035,157.09,157.07,10.33779855]
[1727674753862,0.8084035,157.09,157.06,10.33779855]
[1727674754265,1.59181327,157.08,157.06,10.33779855]
[1727674755552,2.40012798,157.09,157.06,10.33779855]
[1727674756667,0.8084035,157.09,157.06,10.33779855]
[1727674756978,24.027864,157.06,156.93,1.2315]
[1727674757157,6.369,157.01,156.93,1.2315]
[1727674757360,23.776884,157.0,156.97,10.33779855]
[1727674757575,23.776884,157.0,156.96,10.33779855]
[1727674757773,1.59273732,156.99,156.96,10.33779855]
[1727674758981,23.776884,156.98,156.95,10.33779855]
[1727674759278,1.59282116,156.97,156.95,10.33779855]
[1727674760276,20.0,157.02,156.95,10.33779855]
[1727674760469,23.776884,157.01,156.97,10.33779855]
[1727674760991,1.59273571,157.0,156.97,10.33779855]
[1727674761175,23.776884,156.99,156.97,10.33779855]
[1727674761486,1.59272679,156.98,156.97,10.33779855]
[1727674761661,23.776884,157.01,156.97,10.33779855]
[1727674762058,23.776884,156.99,156.97,10.33779855]
[1727674762370,1.59272588,156.98,156.97,10.33779855]
[1727674762687,23.776884,156.99,156.97,10.33779855]
[1727674763674,23.776884,157.01,156.97,10.33779855]
[1727674764482,1.59267489,157.0,156.97,10.33779855]
[1727674766391,23.776884,157.01,156.97,10.33779855]
[1727674769687,23.776884,157.02,156.99,10.33779855]
[1727674770572,1.59247078,157.01,156.99,10.33779855]
[1727674772594,23.776884,157.02,156.99,10.33779855]
[1727674772772,1.5924684,157.01,156.99,10.33779855]
[1727674772963,23.776884,157.02,156.99,10.33779855]
[1727674774475,1.59246934,157.01,156.99,10.33779855]
[1727674790007,23.776884,157.02,156.99,10.33779855]
[1727674791593,1.59247653,157.01,156.99,10.33779855]
[1727674791799,23.776884,157.0,156.96,10.33779855]
[1727674791981,1.59268481,156.99,156.97,30.0]
[1727674793307,1.59268481,156.99,156.96,10.33779855]
[1727674796607,23.776884,157.0,156.96,10.33779855]
[1727674796908,23.776884,157.0,156.98,10.33779855]
[1727674797306,15.8093,157.03,156.98,10.33779855]
[1727674797608,15.8093,157.03,157.01,10.33779855]
[1727674798789,22.3299,157.08,157.01,10.33779855]
[1727674798987,22.3299,157.08,157.05,10.33779855]
[1727674800212,22.3299,157.08,156.99,0.76249412]
[1727674800422,0.8084035,157.09,157.07,10.33779855]
[1727674801907,23.776884,157.08,157.07,10.33779855]
[1727674805311,23.776884,157.08,156.96,2.3079]
[1727674805312,23.776884,157.06,156.96,2.3079]
[1727674805613,23.776884,157.04,157.03,10.33779855]
[1727674807706,23.776884,157.04,156.97,0.12549]
[1727674807930,25.36920191,157.03,157.02,10.33779855]
[1727674808097,25.36920191,157.03,156.95,30.0]
[1727674808098,23.776884,157.02,156.95,30.0]
[1727674808303,1.59244807,157.01,156.95,30.0]
[1727674808496,23.776884,157.02,157.0,10.33779855]
[1727674810516,1.5924186,157.01,157.0,10.33779855]
[1727674813703,23.776884,157.02,157.0,10.33779855]
[1727674815024,1.59246245,157.01,157.0,10.33779855]
[1727674820323,25.36934645,157.01,157.0,10.33779855]
[1727674820714,25.36934645,157.01,156.91,6.6386177]
[1727674820715,23.776884,157.0,156.91,6.6386177]
[1727674820913,23.776884,157.0,156.97,10.33779855]
[1727674820914,1.59276165,156.99,156.97,10.33779855]
[1727674822322,23.776884,156.98,156.97,10.33779855]
[1727674823150,23.776884,156.98,156.95,10.33779855]
[1727674823360,1.59291882,156.97,156.95,10.33779855]
[1727674824147,1.59291882,156.97,156.93,30.0]
[1727674824350,23.776884,156.96,156.94,10.33779855]
[1727674824555,1.59304358,156.95,156.94,10.33779855]
[1727674824755,1.59304358,156.95,156.94,40.33779855]
[1727674825053,1.59304358,156.95,156.94,10.33779855]
[1727674825249,23.776884,156.98,156.94,10.33779855]
[1727674825434,23.776884,156.98,156.97,10.33779855]
[1727674825629,25.36970409,156.98,156.97,10.33779855]
[1727674829638,25.36970409,156.98,156.95,10.33779855]
[1727674831254,1.59287198,156.97,156.95,10.33779855]
[1727674833466,23.776884,156.99,156.95,10.33779855]
[1727674833760,23.776884,156.99,156.97,10.33779855]
[1727674836765,25.36971983,156.98,156.97,10.33779855]
[1727674837346,25.36971983,156.98,156.95,10.33779855]
[1727674838746,25.36971983,156.98,156.87,24.027864]
[1727674838946,23.776884,156.97,156.94,10.33779855]
[1727674839159,1.59298178,156.96,156.94,10.33779855]
[1727674840149,1.59298166,156.97,156.94,10.33779855]
[1727674841249,23.776884,156.96,156.88,30.0]
[1727674841583,23.776884,156.96,156.92,10.33779855]
[1727674841584,1.59316681,156.95,156.92,10.33779855]
[1727674843747,23.776884,156.97,156.92,10.33779855]
[1727674844075,6.3705,156.98,156.88,30.0]
[1727674844076,23.776884,156.98,156.94,10.33779855]
[1727674849683,22.6769,157.0,156.96,10.33779855]
[1727674849981,22.6769,157.0,156.89,3.07321904]
[1727674849982,22.6769,157.0,156.98,10.33779855]
[1727674850897,23.776884,156.99,156.98,10.33779855]
[1727674853178,23.776884,156.99,156.91,1.2315]
[1727674853364,1.59286665,156.98,156.96,10.33779855]
[1727674853566,23.776884,156.97,156.94,10.33779855]
[1727674853762,1.59303241,156.96,156.94,10.33779855]
[1727674855288,23.776884,156.95,156.85,2.3079]
[1727674855488,23.776884,156.93,156.87,30.0]
[1727674855786,23.776884,156.91,156.87,40.33779855]
[1727674855987,1.59359149,156.9,156.87,40.33779855]
[1727674856195,1.59359149,156.9,156.89,10.33779855]
[1727674856566,23.776884,156.91,156.89,10.33779855]
[1727674857167,21.3099,156.94,156.89,10.33779855]
[1727674857370,23.776884,156.93,156.91,10.33779855]
[1727674861578,25.37031323,156.92,156.91,10.33779855]
[1727674861783,23.776884,156.92,156.91,10.33779855]
[1727674862090,23.776884,156.92,156.91,15.2614029]
[1727674864400,23.776884,156.92,156.91,4.92360435]
[1727674865599,23.776884,156.93,156.91,4.92585961]
[1727674865914,30.149084,156.93,156.92,4.92585961]
[1727674867991,25.37038259,156.93,156.92,4.92585961]
[1727674868896,23.776884,156.93,156.92,4.92585961]
[1727674872699,23.776884,156.93,156.92,4.92289949]
[1727674873880,23.776884,156.93,156.92,12.79861678]
[1727674876306,23.776884,156.93,156.92,12.79731846]
[1727674876596,15.3049,156.94,156.92,23.13511701]
[1727674876800,15.3049,156.94,156.93,12.79731846]
[1727674877894,39.081784,156.94,156.93,12.79731846]
[1727674878696,23.776884,156.94,156.93,12.79731846]
[1727674880406,23.776884,156.94,156.93,12.79450591]
[1727674881206,23.776884,156.94,156.93,4.92096381]
[1727674881999,50.148684,156.94,156.93,4.92096381]
[1727674883411,72.238964,156.94,156.93,4.92096381]
[1727674883705,23.776884,156.9,156.85,10.33779855]
[1727674883906,23.776884,156.88,156.82,30.0]
[1727674884088,23.776884,156.88,156.86,4.92396056]
[1727674884089,1.59394568,156.87,156.86,4.92396056]
[1727674884281,23.776884,156.87,156.86,4.92396056]
[1727674884717,23.776884,156.86,156.83,10.33779855]
[1727674885023,1.59415707,156.85,156.75,1.2315]
[1727674885221,23.776884,156.84,156.77,30.0]
[1727674885426,23.776884,156.84,156.8,10.33779855]
[1727674885427,1.59439663,156.83,156.8,10.33779855]
[1727674885899,23.776884,156.85,156.8,10.33779855]
[1727674886094,23.776884,156.86,156.82,10.33779855]
[1727674890225,23.776884,156.84,156.82,10.33779855]
[1727674892704,23.776884,156.84,156.81,10.33779855]
[1727674892909,23.776884,156.85,156.81,10.33779855]
[1727674894122,23.776884,156.85,156.75,1.2315]
[1727674894123,23.776884,156.83,156.75,1.2315]
[1727674894426,1.5944901,156.82,156.8,10.33779855]
[1727674895126,23.776884,156.83,156.8,10.33779855]
[1727674895302,6.3752,156.86,156.8,10.33779855]
[1727674895510,1.46348523,156.85,156.82,10.33779855]
[1727674895935,1.46348523,156.85,156.75,1.2315]
[1727674896109,1.59451711,156.84,156.81,10.33779855]
[1727674896736,23.776884,156.83,156.81,10.33779855]
[1727674896911,25.37134071,156.82,156.81,10.33779855]
[1727674899518,23.776884,156.82,156.81,10.33779855]
[1727674899720,20.0,156.86,156.81,10.33779855]
[1727674899721,26.3751,156.86,156.81,10.33779855]
[1727674900229,23.776884,156.85,156.81,10.33779855]
[1727674900918,23.776884,156.85,156.83,10.33779855]
[1727674904218,25.37115742,156.84,156.83,10.33779855]
[1727674905321,23.776884,156.84,156.83,10.33779855]
[1727674909337,25.37113736,156.85,156.81,10.33779855]
[1727674913924,31.74683736,156.85,156.81,10.33779855]
[1727674914128,31.74683736,156.85,156.79,10.33779855]
[1727674914439,0.12549,156.84,156.79,10.33779855]
[1727674914639,23.776884,156.82,156.79,10.33779855]
[1727674914950,1.59455813,156.81,156.79,10.33779855]
[1727674918323,23.776884,156.8,156.77,10.33779855]
[1727674918526,1.59471344,156.79,156.77,10.33779855]
[1727674920029,1.59471344,156.79,156.72,0.12549]
[1727674920226,1.59471344,156.79,156.76,10.33779855]
[1727674920949,23.776884,156.78,156.73,30.0]
[1727674921129,1.59495684,156.77,156.75,10.33779855]
[1727674922026,23.776884,156.78,156.75,10.33779855]
[1727674922235,1.59493654,156.77,156.76,10.33779855]
[1727674922639,25.37182054,156.77,156.76,10.33779855]
[1727674923362,23.776884,156.77,156.76,10.33779855]
[1727674924961,23.776884,156.8,156.76,10.33779855]
[1727674925164,25.37175374,156.79,156.78,10.33779855]
[1727674926165,23.776884,156.79,156.78,10.33779855]
[1727674926762,23.776884,156.79,156.71,1.2315]
[1727674927057,25.37186894,156.78,156.77,10.33779855]
[1727674927938,23.776884,156.78,156.77,10.33779855]
[1727674928458,23.776884,156.79,156.76,10.33779855]
[1727674928643,23.776884,156.77,156.76,10.33779855]
[1727674929858,23.776884,156.77,156.74,10.33779855]
[1727674930035,1.59513341,156.76,156.74,10.33779855]
[1727674930234,23.776884,156.75,156.74,10.33779855]
[1727674931071,20.12549,156.81,156.74,10.33779855]
[1727674931363,43.776884,156.79,156.74,10.33779855]
[1727674931665,43.776884,156.79,156.76,10.33779855]
[1727674932735,23.776884,156.77,156.76,10.33779855]
[1727674936471,20.0,156.81,156.76,10.33779855]
[1727674936652,20.0,156.81,156.78,10.33779855]
[1727674937272,28.7748,156.82,156.78,10.33779855]
[1727674937663,23.776884,156.81,156.78,10.33779855]
[1727674938570,22.398,156.82,156.8,10.33779855]
[1727674939875,23.776884,156.8,156.78,10.33779855]
[1727674940176,1.5946894,156.79,156.78,10.33779855]
[1727674944954,1.5946894,156.79,156.72,1.2315]
[1727674945159,23.776884,156.78,156.7,2.3079]
[1727674945474,1.59497841,156.77,156.76,10.33779855]
[1727674946788,1.59497841,156.77,156.71,30.0]
[1727674946789,25.37186241,156.77,156.71,30.0]
[1727674946992,1.59497841,156.77,156.75,10.33779855]
[1727674947670,1.59497841,156.77,156.69,0.25098]
[1727674947855,1.59497841,156.77,156.75,10.33779855]
[1727674949586,23.776884,156.76,156.69,0.12549]
[1727674949890,1.59508824,156.75,156.74,10.33779855]
[1727674951373,25.37197224,156.75,156.69,30.0]
[1727674951576,23.776884,156.74,156.72,10.33779855]
[1727674951791,1.59528033,156.73,156.72,10.33779855]
[1727674954375,23.776884,156.75,156.72,10.33779855]
[1727674955486,23.776884,156.76,156.67,0.77049258]
[1727674955686,23.776884,156.76,156.75,10.33779855]
[1727674957467,25.37194311,156.76,156.67,0.25098]
[1727674957667,25.37194311,156.76,156.73,10.33779855]
[1727674959889,26.3795,156.75,156.72,10.33779855]
[1727674960084,25.37217081,156.74,156.72,10.33779855]
[1727674960961,23.776884,156.74,156.72,10.33779855]
[1727674967479,25.37216367,156.74,156.72,10.33779855]
[1727674969392,23.776884,156.74,156.72,10.33779855]
[1727674969587,20.0,156.76,156.72,10.33779855]
[1727674969910,23.776884,156.76,156.72,10.33779855]
[1727674970483,23.776884,156.76,156.74,10.33779855]
[1727674970804,22.7934,156.77,156.74,10.33779855]
[1727674973477,20.0,156.8,156.76,10.33779855]
[1727674973677,28.2343,156.81,156.78,10.33779855]
[1727674975012,21.59472011,156.8,156.78,10.33779855]
[1727674976084,20.0,156.8,156.78,10.33779855]
[1727674978710,1.59470352,156.79,156.78,10.33779855]
[1727674979402,20.0,156.8,156.78,10.33779855]
[1727674979912,21.8569,156.81,156.78,10.33779855]
[1727674980207,23.776884,156.8,156.78,10.33779855]
[1727674980508,21.8569,156.81,156.78,10.33779855]
[1727674980704,15.8288,156.81,156.78,10.33779855]
[1727674980906,23.776884,156.82,156.71,0.12549]
[1727674981084,23.776884,156.82,156.8,10.33779855]
[1727674981281,21.4578,156.85,156.8,10.33779855]
[1727674981487,21.4578,156.85,156.84,10.33779855]
[1727674981695,22.92155244,156.85,156.82,10.33779855]
[1727674983207,1.59422372,156.84,156.82,10.33779855]
[1727674983598,21.4578,156.85,156.82,10.33779855]
[1727674986201,1.59422399,156.84,156.82,10.33779855]
[1727674986906,23.776884,156.83,156.8,10.33779855]
[1727674987085,1.59441382,156.82,156.8,10.33779855]
[1727674987692,23.776884,156.81,156.78,10.33779855]
[1727674988015,1.59462838,156.8,156.78,10.33779855]
[1727674994818,6.3763,156.83,156.78,10.33779855]
[1727674995021,26.376,156.84,156.8,10.33779855]
[1727674996213,23.776884,156.83,156.8,10.33779855]
[1727674996605,21.4578,156.85,156.82,10.33779855]
[1727674997325,21.4578,156.85,156.84,10.33779855]
[1727674997326,15.154,156.85,156.84,10.33779855]
[1727674997914,58.930884,156.85,156.84,10.33779855]
[1727674999127,38.930884,156.85,156.84,10.33779855]
[1727675003030,40.52508136,156.85,156.84,10.33779855]
[1727675004433,38.930884,156.85,156.84,10.33779855]
[1727675006208,40.52504016,156.85,156.84,10.33779855]
[1727675006934,38.930884,156.85,156.84,10.33779855]
[1727675007527,6.3285,156.89,156.84,10.33779855]
[1727675007730,6.3285,156.89,156.76,1.2315]
[1727675007731,20.0,156.88,156.86,10.33779855]
[1727675008223,6.3285,156.89,156.86,10.33779855]
[1727675008548,6.3738,156.9,156.88,10.33779855]
[1727675008736,7.83795467,156.89,156.86,10.33779855]
[1727675009107,23.776884,156.88,156.86,10.33779855]
[1727675009315,25.37079844,156.87,156.86,10.33779855]
[1727675010317,25.37079844,156.87,156.77,0.12549]
[1727675010318,23.776884,156.85,156.77,0.12549]
[1727675010535,25.37115466,156.84,156.83,10.33779855]
[1727675010831,23.776884,156.84,156.83,10.33779855]
[1727675012723,23.776884,156.84,156.81,10.33779855]
[1727675013037,23.776884,156.82,156.8,10.33779855]
[1727675013223,1.59444555,156.81,156.8,10.33779855]
[1727675013830,23.776884,156.84,156.8,10.33779855]
[1727675014018,23.776884,156.84,156.82,10.33779855]
[1727675014839,23.776884,156.85,156.82,10.33779855]
[1727675015943,23.776884,156.83,156.82,10.33779855]
[1727675018841,21.439,156.86,156.82,10.33779855]
[1727675019045,23.776884,156.84,156.82,10.33779855]
[1727675019221,1.5943002,156.83,156.82,10.33779855]
[1727675020130,23.776884,156.85,156.82,10.33779855]
[1727675020649,1.59429003,156.84,156.82,10.33779855]
[1727675021442,23.776884,156.85,156.82,10.33779855]
[1727675022948,23.776884,156.85,156.84,10.33779855]
[1727675023441,20.0,156.87,156.84,10.33779855]
[1727675023852,20.0,156.87,156.86,10.33779855]
[1727675024021,6.1304,156.88,156.86,10.33779855]
[1727675024526,23.776884,156.87,156.86,10.33779855]
[1727675025430,23.776884,156.87,156.84,10.33779855]
[1727675025744,1.59405891,156.86,156.84,10.33779855]
[1727675028047,23.776884,156.87,156.84,10.33779855]
[1727675029652,1.59405733,156.86,156.84,10.33779855]
[1727675029834,23.776884,156.87,156.84,10.33779855]
[1727675033426,23.776884,156.88,156.86,10.33779855]
[1727675033625,23.776884,156.89,156.86,10.33779855]
[1727675034424,6.3056,156.92,156.88,10.33779855]
[1727675034648,22.5562,156.94,156.9,10.33779855]
[1727675035847,43.776884,156.93,156.9,10.33779855]
[1727675036432,23.776884,156.91,156.9,10.33779855]
[1727675036646,23.776884,156.91,156.81,1.2315]
[1727675036954,23.776884,156.9,156.89,10.33779855]
[1727675043269,31.74399767,156.9,156.89,10.33779855]
[1727675043442,23.776884,156.89,156.81,1.2315]
[1727675043654,1.59389496,156.88,156.85,10.33779855]
[1727675047171,23.776884,156.87,156.85,10.33779855]
[1727675047371,1.59398046,156.86,156.85,10.33779855]
[1727675047547,23.776884,156.87,156.85,10.33779855]
[1727675047751,1.59396988,156.86,156.85,10.33779855]
[1727675053657,1.59396988,156.86,156.81,1.2315]
[1727675053858,1.59396988,156.86,156.85,10.33779855]
[1727675055070,23.776884,156.87,156.85,10.33779855]
[1727675056546,1.59396168,156.86,156.85,10.33779855]
[1727675057370,23.776884,156.87,156.85,10.33779855]
[1727675060150,23.776884,156.89,156.85,10.33779855]
[1727675060456,23.776884,156.89,156.88,10.33779855]
[1727675063269,25.37059216,156.89,156.81,1.2315]
[1727675063574,25.37059216,156.89,156.87,10.33779855]
[1727675067858,31.74449216,156.89,156.81,1.2315]
[1727675068058,31.74449216,156.89,156.86,10.33779855]
[1727675069980,31.74449216,156.89,156.87,4.46550491]
[1727675071283,31.74449216,156.89,156.86,10.33779855]
[1727675071584,31.74449216,156.89,156.87,4.46543005]
[1727675071759,31.74449216,156.89,156.86,10.33779855]
[1727675073468,23.776884,156.87,156.81,1.2315]
[1727675073783,1.59402316,156.86,156.82,30.0]
[1727675074793,23.776884,156.87,156.82,30.0]
[1727675074974,1.59402243,156.86,156.82,30.0]
[1727675075174,1.59402243,156.86,156.85,10.33779855]
[1727675079787,23.776884,156.87,156.85,10.33779855]
[1727675085974,1.5939654,156.86,156.85,10.33779855]
[1727675089381,23.776884,156.87,156.85,10.33779855]
[1727675089588,23.776884,156.88,156.85,10.33779855]
[1727675094180,1.59396409,156.87,156.85,10.33779855]
[1727675094900,23.776884,156.88,156.85,10.33779855]
[1727675098306,1.59391451,156.87,156.85,10.33779855]
[1727675101380,23.776884,156.86,156.84,10.33779855]
[1727675101577,1.59406286,156.85,156.84,10.33779855]
[1727675106403,1.59406286,156.85,156.78,0.25098]
[1727675106710,23.776884,156.84,156.82,10.33779855]
[1727675106881,1.4638816,156.83,156.82,10.33779855]
[1727675108789,23.776884,156.85,156.82,10.33779855]
[1727675108978,20.0,156.88,156.84,10.33779855]
[1727675109176,43.776884,156.87,156.86,10.33779855]
[1727675109485,16.0285,156.89,156.86,10.33779855]
[1727675109692,16.0285,156.89,156.88,10.33779855]
[1727675111311,39.805384,156.89,156.88,10.33779855]
[1727675111905,41.39918829,156.89,156.78,1.48248]
[1727675112095,23.776884,156.88,156.85,10.33779855]
[1727675112410,23.776884,156.86,156.85,10.33779855]
[1727675112918,23.776884,156.86,156.83,10.33779855]
[1727675113089,23.776884,156.84,156.79,30.0]
[1727675113285,23.776884,156.82,156.8,10.33779855]
[1727675113492,25.37136721,156.81,156.8,10.33779855]
[1727675114713,23.776884,156.81,156.8,10.33779855]
[1727675115994,23.776884,156.82,156.79,10.33779855]
[1727675116193,23.776884,156.8,156.79,10.33779855]
[1727675116815,23.776884,156.8,156.71,6.59708255]
[1727675116993,23.776884,156.8,156.7,1.2315]
[1727675116994,1.59481408,156.79,156.7,1.2315]
[1727675117193,1.59481408,156.79,156.76,10.33779855]
[1727675117411,23.776884,156.78,156.76,10.33779855]
[1727675117619,29.812884,156.8,156.76,10.33779855]
[1727675120621,17.41131527,156.79,156.7,21.2315]
[1727675120919,15.8164,156.79,156.78,10.33779855]
[1727675121141,39.593284,156.79,156.78,10.33779855]
[1727675123218,23.776884,156.78,156.76,10.33779855]
[1727675123422,23.776884,156.77,156.76,10.33779855]
[1727675126324,23.776884,156.77,156.71,30.0]
[1727675126520,1.59498919,156.76,156.71,30.0]
[1727675127325,1.59498919,156.76,156.7,1.2315]
[1727675127922,1.59498919,156.76,156.69,20.12549]
[1727675128223,23.776884,156.78,156.69,20.0]
[1727675128424,23.776884,156.78,156.73,10.33779855]
[1727675128726,23.776884,156.76,156.73,10.33779855]
[1727675129330,23.776884,156.77,156.73,10.33779855]
[1727675129707,1.59517286,156.76,156.68,0.25098]
[1727675129915,23.776884,156.75,156.74,10.33779855]
[1727675132125,23.776884,156.75,156.68,1.02122824]
[1727675132442,23.776884,156.75,156.74,10.33779855]
[1727675134347,23.776884,156.76,156.73,10.33779855]
[1727675134517,23.776884,156.74,156.72,4.44933491]
[1727675134718,1.59536761,156.73,156.72,10.33779855]
[1727675135627,1.59536761,156.73,156.71,10.33779855]
[1727675136443,23.776884,156.74,156.71,10.33779855]
[1727675136649,23.776884,156.74,156.73,10.33779855]
[1727675137019,20.0,156.78,156.73,10.33779855]
[1727675137342,20.0,156.78,156.76,10.33779855]
[1727675138033,6.3787,156.77,156.74,10.33779855]
[1727675138641,23.776884,156.75,156.74,10.33779855]